fUSD/lending_fUSD_20260425
["ID","MTS","AMOUNT","RATE_DAILY","PERIOD"]
[421109767,1777060238361,-150.0,7.986e-05,2]
[421109768,1777060238371,-150.0,7.989e-05,2]
[421109769,1777060238380,-150.0,7.991e-05,2]
[421109770,1777060238389,-150.0,7.997e-05,2]
[421109771,1777060238399,-150.0,8.004e-05,2]
[421109773,1777060238407,-578.20924308,8.015e-05,2]
[421109775,1777060238417,-174.61919141,8.015e-05,2]
[421109777,1777060238427,-150.0,8.017e-05,2]
[421109779,1777060238437,-150.0,8.03e-05,2]
[421109781,1777060238446,-150.0,8.034e-05,2]
[421109782,1777060238455,-150.0,8.037e-05,2]
[421109783,1777060238464,-150.0,8.039e-05,2]
[421109784,1777060238474,-150.0,8.044e-05,2]
[421109785,1777060238484,-150.0,8.048e-05,2]
[421109786,1777060238494,-150.0,8.048e-05,2]
[421109787,1777060238503,-3254.482494,8.055e-05,2]
[421109788,1777060238512,-1137.618678,8.055e-05,2]
[421109790,1777060238522,-3379.715458,8.055e-05,2]
[421109792,1777060238532,-464.471643,8.055e-05,2]
[421109794,1777060238541,-2109.303219,8.055e-05,2]
[421109795,1777060238551,-150.0,8.057e-05,2]
[421109796,1777060238560,-150.0,8.061e-05,2]
[421109797,1777060238570,-150.0,8.069e-05,2]
[421109798,1777060238579,-150.0,8.077e-05,2]
[421109799,1777060238588,-150.0,8.079e-05,2]
[421109800,1777060238598,-150.0,8.085e-05,2]
[421109801,1777060238607,-150.0,8.093e-05,2]
[421109802,1777060238616,-150.0,8.097e-05,2]
[421109803,1777060238626,-150.0,8.108e-05,2]
[421109804,1777060238636,-150.0,8.114e-05,2]
[421109805,1777060238646,-150.0,8.114e-05,2]
[421109806,1777060238655,-150.0,8.117e-05,2]
[421109807,1777060238665,-150.0,8.124e-05,2]
[421109808,1777060238675,-150.0,8.126e-05,2]
[421109809,1777060238684,-150.0,8.137e-05,2]
[421109810,1777060238694,-150.0,8.147e-05,2]
[421109811,1777060238703,-150.0,8.147e-05,2]
[421109812,1777060238713,-150.0,8.147e-05,2]
[421109813,1777060238724,-150.0,8.157e-05,2]
[421109814,1777060238735,-150.0,8.167e-05,2]
[421109815,1777060238744,-150.0,8.169e-05,2]
[421109816,1777060238754,-150.0,8.176e-05,2]
[421109817,1777060238763,-150.0,8.18e-05,2]
[421109818,1777060238772,-150.0,8.18e-05,2]
[421109819,1777060238783,-150.0,8.186e-05,2]
[421109820,1777060238793,-150.0,8.196e-05,2]
[421109821,1777060238802,-150.0,8.2e-05,2]
[421109822,1777060238812,-150.0,8.208e-05,2]
[421109823,1777060238822,-150.0,8.214e-05,2]
[421109824,1777060238832,-150.0,8.216e-05,2]
[421109825,1777060238844,-500.0,8.219e-05,2]
[421109826,1777060238854,-280.0,8.219e-05,2]
[421109827,1777060238864,-999.99,8.219e-05,2]
[421109828,1777060238875,-24999.99,8.219e-05,2]
[421109829,1777060238886,-150.99,8.219e-05,2]
[421109830,1777060238895,-9999.99,8.219e-05,2]
[421109831,1777060238906,-3039.17,8.219e-05,2]
[421109832,1777060238916,-150.0,8.225e-05,2]
[421109833,1777060239236,-150.0,8.232e-05,2]
[421109834,1777060239256,-150.0,8.236e-05,2]
[421109835,1777060239266,-150.0,8.246e-05,2]
[421109836,1777060239276,-150.0,8.246e-05,2]
[421109837,1777060239286,-150.0,8.249e-05,2]
[421109838,1777060239295,-150.0,8.254e-05,2]
[421109839,1777060239307,-150.0,8.256e-05,2]
[421109840,1777060239317,-150.0,8.259e-05,2]
[421109841,1777060239328,-150.0,8.264e-05,2]
[421109842,1777060239337,-150.0,8.276e-05,2]
[421109843,1777060239347,-150.0,8.289e-05,2]
[421109844,1777060239357,-150.0,8.296e-05,2]
[421109845,1777060239367,-150.0,8.302e-05,2]
[421109846,1777060239377,-150.0,8.305e-05,2]
[421109847,1777060239386,-150.0,8.307e-05,2]
[421109848,1777060239395,-150.0,8.311e-05,2]
[421109849,1777060239405,-150.0,8.311e-05,2]
[421109850,1777060239415,-150.0,8.316e-05,2]
[421109851,1777060239424,-150.0,8.33e-05,2]
[421109852,1777060239433,-150.0,8.336e-05,2]
[421109853,1777060239443,-150.0,8.341e-05,2]
[421109854,1777060239452,-150.0,8.35e-05,2]
[421109855,1777060239462,-150.0,8.356e-05,2]
[421109856,1777060239471,-150.0,8.361e-05,2]
[421109857,1777060239480,-150.0,8.361e-05,2]
[421109858,1777060239490,-420.0,8.361e-05,2]
[421109859,1777060239499,-714.0,8.361e-05,2]
[421109861,1777060239509,-300.0,8.361e-05,2]
[421109862,1777060239518,-300.0,8.361e-05,2]
[421109863,1777060239527,-150.0,8.371e-05,2]
[421109864,1777060239537,-150.0,8.376e-05,2]
[421109865,1777060239546,-150.0,8.377e-05,2]
[421109866,1777060239556,-150.0,8.377e-05,2]
[421109867,1777060239566,-150.0,8.38e-05,2]
[421109868,1777060239575,-150.0,8.395e-05,2]
[421109869,1777060239585,-150.0,8.396e-05,2]
[421109870,1777060239594,-150.0,8.404e-05,2]
[421109871,1777060239603,-459.46,8.405e-05,2]
[421109872,1777060239612,-150.0,8.412e-05,2]
[421109873,1777060239622,-150.0,8.415e-05,2]
[421109874,1777060239631,-150.0,8.416e-05,2]
[421109875,1777060239640,-150.0,8.419e-05,2]
[421109876,1777060239650,-150.0,8.436e-05,2]
[421109877,1777060239660,-150.0,8.44e-05,2]
[421109878,1777060239669,-150.0,8.443e-05,2]
[421109879,1777060239679,-150.0,8.443e-05,2]
[421109880,1777060239689,-150.0,8.453e-05,2]
[421109881,1777060239700,-150.0,8.456e-05,2]
[421109882,1777060239710,-150.0,8.458e-05,2]
[421109883,1777060239720,-150.0,8.468e-05,2]
[421109884,1777060239730,-150.0,8.476e-05,2]
[421109885,1777060239740,-150.0,8.485e-05,2]
[421109886,1777060239749,-618.37299919,8.493e-05,2]
[421109887,1777060239758,-150.0,8.494e-05,2]
[421109888,1777060239768,-150.0,8.496e-05,2]
[421109889,1777060239779,-150.0,8.497e-05,2]
[421109890,1777060239789,-150.0,8.509e-05,2]
[421109891,1777060239798,-150.0,8.509e-05,2]
[421109892,1777060239808,-150.0,8.516e-05,2]
[421109893,1777060239818,-150.0,8.522e-05,2]
[421109894,1777060239827,-255.0,8.53e-05,2]
[421109895,1777060239837,-150.0,8.53e-05,2]
[421109896,1777060239846,-150.0,8.535e-05,2]
[421109897,1777060239856,-150.0,8.535e-05,2]
[421109898,1777060239866,-150.0,8.536e-05,2]
[421109899,1777060239875,-150.0,8.555e-05,2]
[421109900,1777060239884,-181.08010149,8.563e-05,2]
[421109901,1777060239894,-4469.1177126,8.569e-05,2]
[421109902,1777060239903,-41488.2235723,8.569e-05,2]
[421109903,1777060239913,-160.1527878,8.573e-05,2]
[421109904,1777060239923,-378.02289078,8.573e-05,2]
[421109905,1777060239932,-500.0,8.573e-05,2]
[421109906,1777060239941,-500.0,8.573e-05,2]
[421109907,1777060239951,-500.0,8.573e-05,2]
[421109908,1777060239960,-337.45912999,8.573e-05,2]
[421109909,1777060239970,-500.0,8.573e-05,2]
[421109910,1777060239979,-200.19658438,8.573e-05,2]
[421109911,1777060239988,-500.0,8.573e-05,2]
[421109912,1777060239998,-150.0,8.575e-05,2]
[421109913,1777060240010,-150.0,8.575e-05,2]
[421109914,1777060240020,-169.2913192,8.575e-05,2]
[421109915,1777060240029,-150.0,8.575e-05,2]
[421109916,1777060240039,-150.0,8.575e-05,2]
[421109917,1777060240048,-150.0,8.575e-05,2]
[421109918,1777060240058,-150.0,8.575e-05,2]
[421109919,1777060240067,-150.0,8.575e-05,2]
[421109920,1777060240076,-150.0,8.575e-05,2]
[421109921,1777060240086,-638.0,8.575e-05,2]
[421109922,1777060240095,-4012.0,8.575e-05,2]
[421109923,1777060240105,-284.23043052,8.575e-05,2]
[421109924,1777060240114,-229.73,8.578e-05,2]
[421109925,1777060240124,-695.39793187,8.595e-05,2]
[421109926,1777060240134,-743.0,8.6e-05,5]
[421109927,1777060240144,-250.0,8.6e-05,2]
[421109928,1777060240154,-87956.05642413,8.6e-05,2]
[421109929,1777060240180,-2149.54225841,8.6e-05,2]
[421109930,1777060240192,-2050.45774159,8.6e-05,2]
[421109933,1777060242914,-291641.7910985,8.6e-05,2]
[421109950,1777060245903,-3000.00000576,8.6e-05,2]
[421109951,1777060245915,-1989.36575059,8.6e-05,2]
[421109952,1777060246275,-93306.0,8.6e-05,2]
[421109953,1777060246382,-2392.81052465,8.6e-05,2]
[421109954,1777060246436,-6499.0,8.6e-05,2]
[421109955,1777060246451,-16789.83086948,8.6e-05,2]
[421109956,1777060246464,-5610.16913052,8.6e-05,2]
[421109962,1777060720138,373.9415824,7.655e-05,4]
[421109993,1777061141880,-150.0,7.109e-05,2]
[421109994,1777061354140,-150.0,7.329e-05,2]
[421109995,1777061354165,-250.0,7.386e-05,2]
[421109996,1777061354189,-193.0,7.442e-05,2]
[421109997,1777061354212,-300.0,7.553e-05,2]
[421109998,1777061354234,-150.0,7.553e-05,2]
[421109999,1777061354255,-246.0,7.553e-05,2]
[421110000,1777061354275,-300.0,7.553e-05,2]
[421110001,1777061354301,-500.0,7.554e-05,2]
[421110002,1777061354326,-500.0,7.554e-05,2]
[421110003,1777061354352,-500.0,7.554e-05,2]
[421110004,1777061354378,-500.0,7.554e-05,2]
[421110005,1777061354404,-500.0,7.554e-05,2]
[421110006,1777061354429,-500.0,7.554e-05,2]
[421110007,1777061354456,-500.0,7.554e-05,2]
[421110008,1777061354482,-487.739,7.554e-05,2]
[421110020,1777061431941,-484.5,7.438e-05,2]
[421110021,1777061431953,-602.92,7.438e-05,2]
[421110022,1777061431963,-300.0,7.554e-05,2]
[421110023,1777061431974,-1200.0,7.554e-05,2]
[421110024,1777061431983,-300.0,7.554e-05,2]
[421110025,1777061431993,-242723.63100424,7.555e-05,2]
[421110026,1777061432099,-380.0,7.555e-05,2]
[421110083,1777061438364,-3123.75116919,7.555e-05,2]
[421110084,1777061438684,-52360.60212657,7.555e-05,2]
[421110085,1777061438694,-2549.34798039,7.556e-05,2]
[421110086,1777061438707,-5014.28271961,7.556e-05,2]
[421110087,1777061438717,-2180.8311,7.556e-05,2]
[421110088,1777061438728,-203.58030326,7.569e-05,2]
[421110089,1777061438739,-543.7,7.592e-05,2]
[421110090,1777061438750,-154.7246712,7.653e-05,2]
[421110091,1777061438760,-181.23,7.745e-05,2]
[421110092,1777061438770,-193.0,8.062e-05,2]
[421110093,1777061438781,-250.0,8.062e-05,2]
[421110094,1777061438791,-250.0,8.062e-05,2]
[421110095,1777061438802,-578.20924308,8.081e-05,2]
[421110096,1777061438813,-695.39793187,8.081e-05,2]
[421110097,1777061438823,-174.61919141,8.081e-05,2]
[421110098,1777061438832,-280.0,8.219e-05,2]
[421110099,1777061438842,-152.0,8.308e-05,2]
[421110100,1777061438852,-420.0,8.309e-05,2]
[421110101,1777061438862,-1200.0,8.309e-05,2]
[421110102,1777061438872,-420.0,8.309e-05,2]
[421110103,1777061438882,-1969.11212341,8.31e-05,2]
[421110104,1777061438903,-3030.88787659,8.31e-05,2]
[421110106,1777061438913,-5000.0,8.31e-05,2]
[421110107,1777061438922,-2072.0756132,8.31e-05,2]
[421110108,1777061438932,-8895.1981635,8.597e-05,2]
[421110109,1777061438942,-863.0,8.6e-05,5]
[421110110,1777061438953,-500.0,8.6e-05,2]
[421110111,1777061438963,-158.0,8.6e-05,3]
[421110112,1777061438973,-152.0,8.6e-05,3]
[421110113,1777061438983,-152.0,8.602e-05,7]
[421110114,1777061438992,-152.0,8.61e-05,7]
[421110115,1777061439002,-152.0,8.61e-05,7]
[421110116,1777061439013,-152.0,8.619e-05,7]
[421110117,1777061439023,-181.08010149,8.629e-05,2]
[421110118,1777061439033,-210.1,8.656e-05,2]
[421110119,1777061439043,-50643.88914646,8.7e-05,2]
[421110120,1777061439053,-500.0,8.7e-05,2]
[421110121,1777061439064,-500.0,8.7e-05,2]
[421110123,1777061439074,-150.0,8.877e-05,2]
[421110125,1777061439084,-152.1122056,8.877e-05,2]
[421110126,1777061439094,-150.0,8.877e-05,2]
[421110127,1777061439104,-286.49130564,8.877e-05,2]
[421110128,1777061439114,-150.0,8.877e-05,2]
[421110129,1777061439124,-150.0,8.877e-05,2]
[421110130,1777061439134,-126.96584537,9.024e-05,2]
[421110131,1777061439147,-1405.03415463,9.024e-05,2]
[421110132,1777061439156,-1532.0,9.024e-05,2]
[421110133,1777061439166,-150.0,9.123e-05,2]
[421110134,1777061439176,-587.0,9.14e-05,2]
[421110136,1777061439187,-187.78006525,9.177e-05,2]
[421110137,1777061439197,-152.0,9.191e-05,2]
[421110138,1777061439207,-152.0,9.191e-05,2]
[421110139,1777061439219,-1532.0,9.191e-05,2]
[421110140,1777061439230,-151.0,9.191e-05,2]
[421110141,1777061439240,-302.0,9.191e-05,2]
[421110142,1777061439250,-150.0,9.37e-05,2]
[421110143,1777061439262,-218.5,9.4e-05,2]
[421110144,1777061439272,-150.0,9.616e-05,2]
[421110145,1777061439283,-9999.99,9.67e-05,2]
[421110146,1777061439294,-299.99,9.67e-05,2]
[421110147,1777061439304,-1984.7869907,9.706e-05,2]
[421110148,1777061439315,-194.72792766,9.725e-05,2]
[421110149,1777061439325,-5000.0,9.79e-05,2]
[421110150,1777061439336,-162.24500663,9.83e-05,2]
[421110151,1777061439346,-160.0,9.83e-05,2]
[421110152,1777061439356,-500.0,9.863e-05,2]
[421110153,1777061439367,-500.0,9.863e-05,2]
[421110154,1777061439377,-500.0,9.863e-05,2]
[421110155,1777061439389,-150.0,9.863e-05,2]
[421110156,1777061439399,-150.0,9.863e-05,2]
[421110157,1777061439410,-161.18022559,9.863e-05,2]
[421110158,1777061439420,-250.0,9.89e-05,2]
[421110159,1777061439430,-881.0,9.89e-05,5]
[421110160,1777061439440,-200523.33995544,9.89e-05,3]
[421110161,1777061439455,-399.2040048,9.89e-05,3]
[421110162,1777061439471,-7904.62537552,9.89e-05,3]
[421110163,1777061439483,-738.78862192,9.89e-05,3]
[421110166,1777061440343,-654.75309404,9.89e-05,3]
[421110167,1777061440450,-963.42602351,9.89e-05,3]
[421110168,1777061440506,-1211.0,9.89e-05,3]
[421110169,1777061440929,-1690.5913692,9.89e-05,3]
[421110170,1777061440985,-22661.16864692,9.89e-05,3]
[421110171,1777061441041,-3997.05787103,9.89e-05,3]
[421110186,1777061443110,-500.0,9.177e-05,2]
[421110187,1777061443119,-9757.85953069,9.89e-05,3]
[421110188,1777061443321,-908.93468603,9.89e-05,3]
[421110195,1777061446361,-3318.34550491,9.89e-05,3]
[421110196,1777061446373,-20541.24222643,9.89e-05,3]
[421110197,1777061446384,-103730.55851244,9.89e-05,3]
[421110198,1777061446396,-17585.12832613,9.89e-05,3]
[421110199,1777061446407,-266.180693,9.89e-05,3]
[421110200,1777061446418,-8213.35696041,9.89e-05,3]
[421110201,1777061446429,-8254.76554038,9.89e-05,3]
[421110202,1777061446440,-5800.94050458,9.89e-05,3]
[421110204,1777061909029,-535.0,7.553e-05,2]
[421110205,1777061909052,-300.0,7.553e-05,2]
[421110206,1777061909074,-150.0,7.553e-05,2]
[421110207,1777061909096,-250.0,7.553e-05,2]
[421110208,1777061909116,-203.58030326,7.553e-05,2]
[421110209,1777061909143,-837.19103727,7.554e-05,2]
[421110210,1777061909170,-837.19103727,7.554e-05,2]
[421110211,1777061909197,-837.19103727,7.554e-05,2]
[421110212,1777061909224,-837.19103727,7.554e-05,2]
[421110213,1777061909256,-837.19103727,7.554e-05,2]
[421110214,1777061909285,-837.19103727,7.554e-05,2]
[421110215,1777061909312,-837.19103727,7.554e-05,2]
[421110216,1777061909339,-837.19103727,7.554e-05,2]
[421110217,1777061909366,-837.19103727,7.554e-05,2]
[421110218,1777061909393,-837.19103727,7.554e-05,2]
[421110219,1777061909419,-189.50932404,7.554e-05,2]
[421110220,1777061910812,-647.68171323,7.554e-05,2]
[421110221,1777061910841,-837.19103727,7.554e-05,2]
[421110222,1777061910869,-837.19103727,7.554e-05,2]
[421110223,1777061910899,-837.19103727,7.554e-05,2]
[421110224,1777061910933,-837.19103727,7.554e-05,2]
[421110225,1777061910962,-837.19103727,7.554e-05,2]
[421110226,1777061910989,-837.19103727,7.554e-05,2]
[421110227,1777061911018,-837.19103727,7.554e-05,2]
[421110228,1777061911046,-837.19103727,7.554e-05,2]
[421110229,1777061911073,-837.19103727,7.554e-05,2]
[421110230,1777061911100,-837.19103727,7.554e-05,2]
[421110231,1777061911128,-837.19103727,7.554e-05,2]
[421110232,1777061911156,-143.2168768,7.554e-05,2]
[421110233,1777061911351,-693.97416047,7.554e-05,2]
[421110234,1777061911379,-837.19103727,7.554e-05,2]
[421110235,1777061911407,-837.19103727,7.554e-05,2]
[421110236,1777061911435,-837.19103727,7.554e-05,2]
[421110237,1777061911464,-837.19103727,7.554e-05,2]
[421110238,1777061911493,-837.19103727,7.554e-05,2]
[421110239,1777061911521,-837.19103727,7.554e-05,2]
[421110240,1777061911549,-837.19103727,7.554e-05,2]
[421110241,1777061911577,-837.19103727,7.554e-05,2]
[421110242,1777061911606,-837.19103727,7.554e-05,2]
[421110243,1777061911637,-837.19103727,7.554e-05,2]
[421110244,1777061911664,-837.19103727,7.554e-05,2]
[421110245,1777061911692,-96.92442956,7.554e-05,2]
[421110246,1777061911793,-740.26660771,7.554e-05,2]
[421110247,1777061911821,-837.19103727,7.554e-05,2]
[421110248,1777061911848,-837.19103727,7.554e-05,2]
[421110249,1777061911875,-837.19103727,7.554e-05,2]
[421110250,1777061911903,-837.19103727,7.554e-05,2]
[421110251,1777061911930,-837.19103727,7.554e-05,2]
[421110252,1777061911957,-837.19103727,7.554e-05,2]
[421110253,1777061911983,-837.19103727,7.554e-05,2]
[421110254,1777061912021,-837.19103727,7.554e-05,2]
[421110255,1777061912051,-837.19103727,7.554e-05,2]
[421110256,1777061912081,-837.19103727,7.554e-05,2]
[421110257,1777061912108,-837.19103727,7.554e-05,2]
[421110258,1777061912137,-50.63198232,7.554e-05,2]
[421110259,1777061912182,-786.55905495,7.554e-05,2]
[421110260,1777061912210,-837.19103727,7.554e-05,2]
[421110261,1777061912238,-837.19103727,7.554e-05,2]
[421110262,1777061912265,-837.19103727,7.554e-05,2]
[421110263,1777061912293,-837.19103727,7.554e-05,2]
[421110264,1777061912320,-837.19103727,7.554e-05,2]
[421110265,1777061912350,-837.19103727,7.554e-05,2]
[421110266,1777061912378,-837.19103727,7.554e-05,2]
[421110267,1777061912929,-837.19103727,7.554e-05,2]
[421110268,1777061912975,-837.19103727,7.554e-05,2]
[421110269,1777061913002,-837.19103727,7.554e-05,2]
[421110270,1777061913030,-837.19103727,7.554e-05,2]
[421110271,1777061913058,-4.33953508,7.554e-05,2]
[421110272,1777061913379,-832.85150219,7.554e-05,2]
[421110273,1777061913406,-837.19103727,7.554e-05,2]
[421110274,1777061913433,-828.8191269,7.554e-05,2]
[421110275,1777061913464,-828.8191269,7.554e-05,2]
[421110276,1777061913492,-828.8191269,7.554e-05,2]
[421110277,1777061913519,-828.8191269,7.554e-05,2]
[421110278,1777061913545,-828.8191269,7.554e-05,2]
[421110279,1777061913573,-828.8191269,7.554e-05,2]
[421110280,1777061913600,-828.8191269,7.554e-05,2]
[421110281,1777061913627,-828.8191269,7.554e-05,2]
[421110282,1777061913652,-828.8191269,7.554e-05,2]
[421110283,1777061913679,-828.8191269,7.554e-05,2]
[421110284,1777061913706,-41.76619154,7.554e-05,2]
[421110285,1777061913758,-787.05293536,7.554e-05,2]
[421110286,1777061913784,-828.8191269,7.554e-05,2]
[421110287,1777061913812,-828.8191269,7.554e-05,2]
[421110288,1777061913838,-828.8191269,7.554e-05,2]
[421110289,1777061913864,-828.8191269,7.554e-05,2]
[421110290,1777061913891,-828.8191269,7.554e-05,2]
[421110291,1777061913917,-828.8191269,7.554e-05,2]
[421110292,1777061913943,-828.8191269,7.554e-05,2]
[421110293,1777061913969,-828.8191269,7.554e-05,2]
[421110294,1777061913995,-828.8191269,7.554e-05,2]
[421110295,1777061914025,-828.8191269,7.554e-05,2]
[421110296,1777061914052,-828.8191269,7.554e-05,2]
[421110297,1777061914079,-95.93666874,7.554e-05,2]
[421110298,1777061914205,-732.88245816,7.554e-05,2]
[421110299,1777061914233,-828.8191269,7.554e-05,2]
[421110300,1777061914260,-828.8191269,7.554e-05,2]
[421110301,1777061914287,-828.8191269,7.554e-05,2]
[421110302,1777061914315,-828.8191269,7.554e-05,2]
[421110303,1777061914340,-828.8191269,7.554e-05,2]
[421110304,1777061914367,-828.8191269,7.554e-05,2]
[421110305,1777061914395,-828.81912697,7.554e-05,2]
[421110306,1777061914416,-164.85869493,7.554e-05,2]
[421110307,1777061914441,-424.71635701,7.554e-05,2]
[421110308,1777061914462,-500.0,7.554e-05,2]
[421110309,1777061914487,-473.57589887,7.554e-05,2]
[421110310,1777061914509,-500.0,7.554e-05,2]
[421110311,1777061914530,-500.0,7.554e-05,2]
[421110312,1777061914550,-500.0,7.554e-05,2]
[421110313,1777061914576,-402.23270266,7.555e-05,2]
[421110314,1777061914625,-10000.0,7.555e-05,2]
[421110315,1777061914680,-10000.0,7.555e-05,2]
[421110316,1777061914832,-10000.0,7.555e-05,2]
[421110317,1777061916003,-10000.0,7.555e-05,2]
[421110318,1777061916059,-10000.0,7.555e-05,2]
[421110319,1777061916386,-10000.0,7.555e-05,2]
[421110320,1777061916685,-10000.0,7.555e-05,2]
[421110321,1777061917217,-10000.0,7.555e-05,2]
[421110322,1777061917824,-10000.0,7.555e-05,2]
[421110323,1777061918012,-10000.0,7.555e-05,2]
[421110324,1777061918391,-10000.0,7.555e-05,2]
[421110325,1777061918808,-10000.0,7.555e-05,2]
[421110326,1777061919292,-10000.0,7.555e-05,2]
[421110327,1777061919530,-10000.0,7.555e-05,2]
[421110328,1777061919862,-10000.0,7.555e-05,2]
[421110329,1777061920294,-10000.0,7.555e-05,2]
[421110330,1777061920775,-10000.0,7.555e-05,2]
[421110331,1777061921155,-10000.0,7.555e-05,2]
[421110332,1777061921811,-10000.0,7.555e-05,2]
[421110333,1777061922475,-10000.0,7.555e-05,2]
[421110334,1777061922876,-10000.0,7.555e-05,2]
[421110335,1777061923323,-10000.0,7.555e-05,2]
[421110336,1777061924468,-10000.0,7.555e-05,2]
[421110337,1777061925006,-10000.0,7.555e-05,2]
[421110338,1777061925838,-10000.0,7.555e-05,2]
[421110339,1777061927212,-10000.0,7.555e-05,2]
[421110340,1777061928090,-10000.0,7.555e-05,2]
[421110341,1777061928938,-10000.0,7.555e-05,2]
[421110342,1777061930221,-10000.0,7.555e-05,2]
[421110343,1777061949326,154.0,7.555e-05,3]
[421110344,1777061974123,434.96,7.328e-05,2]
[421110345,1777062116490,177.67544045,7.329e-05,2]
[421110346,1777062167438,1024.9,6.592e-05,2]
[421110347,1777062245279,167.0,7.328e-05,3]
[421110352,1777062402135,-251.94606806,7.453e-05,2]
[421110356,1777062632197,-248.05393194,7.453e-05,2]
[421110357,1777062632207,-250.0,7.466e-05,2]
[421110358,1777062632216,-217.48,7.479e-05,2]
[421110359,1777062632226,-250.0,8.198e-05,2]
[421110360,1777062632235,-280.0,8.219e-05,2]
[421110361,1777062632245,-300.0,8.22e-05,2]
[421110362,1777062632266,-1200.0,8.22e-05,2]
[421110363,1777062632276,-578.20924308,8.221e-05,2]
[421110364,1777062632286,-695.39793187,8.221e-05,2]
[421110365,1777062632296,-151.0,8.221e-05,2]
[421110366,1777062632306,-151.4083656,8.221e-05,2]
[421110367,1777062632316,-174.61919141,8.221e-05,2]
[421110368,1777062632327,-193.37,8.579e-05,2]
[421110369,1777062632337,-151.0,8.584e-05,2]
[421110370,1777062632347,-181.08010149,8.769e-05,2]
[421110371,1777062632357,-187.78006525,9.317e-05,2]
[421110372,1777062632368,-189.81246108,9.616e-05,2]
[421110373,1777062632378,-162.24500663,9.773e-05,2]
[421110374,1777062632388,-160.0,9.773e-05,2]
[421110375,1777062632398,-7645.5177,9.789e-05,2]
[421110376,1777062632408,-2000.0,9.789e-05,2]
[421110377,1777062632419,-2500.0,9.79e-05,2]
[421110378,1777062632428,-204.88,9.841e-05,2]
[421110379,1777062632438,-478.06,9.841e-05,2]
[421110380,1777062632448,-500.0,9.841e-05,2]
[421110381,1777062632458,-250.86,9.863e-05,2]
[421110382,1777062632468,-194.72792766,9.865e-05,2]
[421110383,1777062632478,-1219.6992201,9.87e-05,2]
[421110384,1777062632488,-154.7246712,9.887e-05,2]
[421110385,1777062632497,-150.0,9.888e-05,2]
[421110386,1777062632507,-264.67,9.889e-05,2]
[421110387,1777062632516,-178.02473673,9.889e-05,2]
[421110388,1777062632530,-332.28184213,9.889e-05,2]
[421110389,1777062632540,-510.30657886,9.889e-05,2]
[421110390,1777062632550,-510.30657886,9.889e-05,2]
[421110391,1777062632559,-510.30657886,9.889e-05,2]
[421110392,1777062632568,-510.30657886,9.889e-05,2]
[421110393,1777062632578,-510.30657886,9.889e-05,2]
[421110394,1777062632588,-510.30657886,9.889e-05,2]
[421110396,1777062632598,-510.30657886,9.889e-05,2]
[421110398,1777062632607,-343.06380481,9.889e-05,2]
[421110404,1777062632656,-167.24277405,9.889e-05,2]
[421110406,1777062632666,-510.30657886,9.889e-05,2]
[421110408,1777062632677,-510.30657886,9.889e-05,2]
[421110410,1777062632687,-510.30657886,9.889e-05,2]
[421110413,1777062632697,-510.30657886,9.889e-05,2]
[421110415,1777062632708,-510.30657886,9.889e-05,2]
[421110417,1777062632718,-510.30657886,9.889e-05,2]
[421110419,1777062632729,-510.30657886,9.889e-05,2]
[421110421,1777062632741,-510.30657886,9.889e-05,2]
[421110423,1777062632750,-510.30657886,9.889e-05,2]
[421110425,1777062632760,-94.67874129,9.889e-05,2]
[421110427,1777062632773,-415.62783757,9.889e-05,2]
[421110429,1777062632785,-510.30657886,9.889e-05,2]
[421110431,1777062632795,-510.30657886,9.889e-05,2]
[421110433,1777062632805,-510.30657886,9.889e-05,2]
[421110435,1777062632815,-510.30657886,9.889e-05,2]
[421110437,1777062632824,-510.30657886,9.889e-05,2]
[421110439,1777062632834,-510.30657886,9.889e-05,2]
[421110441,1777062632843,-510.30657886,9.889e-05,2]
[421110443,1777062632853,-510.30657886,9.889e-05,2]
[421110445,1777062632863,-510.30657886,9.889e-05,2]
[421110447,1777062632873,-510.30657886,9.889e-05,2]
[421110449,1777062632882,-510.30657886,9.889e-05,2]
[421110451,1777062632892,-510.30657886,9.889e-05,2]
[421110453,1777062632902,-510.30657886,9.889e-05,2]
[421110455,1777062632912,-510.30657886,9.889e-05,2]
[421110457,1777062632923,-510.30657886,9.889e-05,2]
[421110459,1777062632933,-510.30657886,9.889e-05,2]
[421110461,1777062632943,-510.30657886,9.889e-05,2]
[421110463,1777062632952,-510.30657886,9.889e-05,2]
[421110465,1777062632962,-510.30657886,9.889e-05,2]
[421110467,1777062632972,-510.30657886,9.889e-05,2]
[421110469,1777062632982,-510.30657886,9.889e-05,2]